bitfinex-derivatives/quotes_SOLF0:USTF0_20241227
["timestamp","ask_amount","ask_price","bid_price","bid_amount"]
[1735337574612,2.7147,184.45,184.41,5.8552]
[1735337574901,1.5612,184.5,184.42,12.71213912]
[1735337575104,2.7139,184.5,184.45,12.71213912]
[1735337575404,2.7139,184.5,184.46,3.16]
[1735337575902,2.7139,184.5,184.46,5.8744]
[1735337576106,2.7138,184.51,184.46,3.16]
[1735337576500,2.7138,184.51,184.48,12.71213912]
[1735337577007,1.675,184.55,184.48,12.71213912]
[1735337577204,3.308,184.57,184.48,12.71213912]
[1735337577509,63.05872665,184.59,184.51,12.71213912]
[1735337577709,2.7129,184.57,184.52,3.16]
[1735337579303,29.60553382,184.6,184.54,12.71213912]
[1735337579510,2.7125,184.6,184.54,12.71213912]
[1735337580203,29.60553382,184.62,184.59,2.7126]
[1735337580410,29.60553382,184.62,184.6,15.87213912]
[1735337580600,29.60553382,184.62,184.61,3.16]
[1735337580809,7.43322908,184.64,184.61,3.16]
[1735337581509,7.43322908,184.64,184.63,12.71213912]
[1735337582004,29.60553382,184.69,184.63,12.71213912]
[1735337582807,2.7114,184.68,184.63,12.71213912]
[1735337584605,1.5381,184.74,184.63,12.71213912]
[1735337585010,1.5381,184.74,184.66,2.7115]
[1735337585212,1.5381,184.74,184.67,3.16]
[1735337586616,2.7107,184.72,184.67,3.16]
[1735337586805,1.5381,184.74,184.67,3.16]
[1735337587009,2.7113,184.69,184.67,3.16]
[1735337587205,12.71213912,184.72,184.68,3.16]
[1735337587515,12.71213912,184.72,184.69,3.16]
[1735337587914,2.711,184.7,184.69,3.16]
[1735337589020,2.711,184.7,184.69,0.6057]
[1735337599129,1.5381,184.74,184.69,0.6057]
[1735337599430,2.7109,184.71,184.69,0.6057]
[1735337601332,12.71213912,184.8,184.69,0.6057]
[1735337602136,2.7104,184.75,184.7,2.7109]
[1735337603639,1.5969,184.82,184.71,12.71213912]
[1735337603837,2.7101,184.76,184.71,15.42283912]
[1735337605329,14.37303912,184.83,184.71,12.71213912]
[1735337605534,2.7098,184.78,184.74,12.71213912]
[1735337605841,2.7098,184.78,184.75,3.18]
[1735337606135,12.71213912,184.86,184.75,3.18]
[1735337606333,12.71213912,184.89,184.77,12.71213912]
[1735337607335,12.71213912,184.89,184.78,2.7097]
[1735337607740,2.709,184.84,184.77,12.71213912]
[1735337607935,12.71213912,184.89,184.77,12.71213912]
[1735337608337,2.7091,184.83,184.77,12.71213912]
[1735337609137,2.7091,184.83,184.77,15.42193912]
[1735337609638,12.71213912,184.89,184.77,12.71213912]
[1735337609941,2.7095,184.8,184.76,1.6722]
[1735337611143,3.1895,184.9,184.77,12.71213912]
[1735337611144,2.7093,184.82,184.77,12.71213912]
[1735337612544,2.7093,184.82,184.78,2.7098]
[1735337614050,2.7093,184.82,184.77,12.71213912]
[1735337614238,2.7093,184.82,184.77,15.42203912]
[1735337615747,2.7093,184.82,184.78,2.7097]
[1735337616047,1.5868,184.93,184.77,12.71213912]
[1735337616249,2.709,184.84,184.8,12.71213912]
[1735337616445,12.71213912,184.92,184.81,3.18]
[1735337617554,12.71213912,184.92,184.81,4.8219]
[1735337618053,2.7087,184.86,184.81,7.5313]
[1735337618447,12.71213912,184.92,184.81,7.5313]
[1735337619152,2.7082,184.89,184.81,7.5313]
[1735337619354,12.71213912,184.92,184.81,7.5313]
[1735337620152,2.7087,184.86,184.81,7.5313]
[1735337623160,12.71213912,184.92,184.81,7.5313]
[1735337623348,2.7088,184.85,184.81,7.5313]
[1735337623548,12.71213912,184.92,184.81,4.8219]
[1735337624256,2.7092,184.83,184.81,4.8219]
[1735337625053,2.7092,184.83,184.81,1.6419]
[1735337625255,2.7092,184.83,184.82,3.18]
[1735337627655,2.7092,184.83,184.82,11.28461234]
[1735337628953,8.10461234,184.86,184.76,1.6722]
[1735337629159,8.10461234,184.86,184.78,8.10461234]
[1735337630064,8.10461234,184.86,184.8,8.10461234]
[1735337631065,8.10461234,184.86,184.77,3.16]
[1735337631361,8.10461234,184.86,184.8,8.10461234]
[1735337632357,8.10461234,184.86,184.81,3.16]
[1735337633462,2.7092,184.82,184.81,3.16]
[1735337633958,1.5868,184.93,184.81,3.16]
[1735337634163,2.7092,184.82,184.81,3.16]
[1735337634360,2.7092,184.82,184.81,11.26461234]
[1735337639267,2.7092,184.82,184.81,3.16]
[1735337639560,2.7092,184.82,184.81,11.26461234]
[1735337645467,7.43322908,184.92,184.81,11.26461234]
[1735337645765,8.10461234,184.91,184.84,8.10461234]
[1735337646669,2.7089,184.85,184.84,8.10461234]
[1735337647170,2.7086,184.86,184.84,8.10461234]
[1735337658676,8.10461234,184.9,184.84,8.10461234]
[1735337658866,2.7088,184.85,184.84,8.10461234]
[1735337664377,2.7086,184.87,184.84,8.10461234]
[1735337664579,8.10461234,184.91,184.84,8.10461234]
[1735337664877,2.7082,184.89,184.84,8.10461234]
[1735337665076,8.10461234,184.91,184.84,8.10461234]
[1735337666575,2.7086,184.87,184.84,8.10461234]
[1735337666972,2.7086,184.87,184.86,8.10461234]
[1735337667182,2.7086,184.87,184.86,11.26461234]
[1735337672690,9.69141234,184.93,184.86,11.26461234]
[1735337673587,2.7084,184.88,184.86,11.26461234]
[1735337674281,2.7081,184.9,184.86,13.97321234]
[1735337674483,1.5398408,184.96,184.89,8.10461234]
[1735337674779,1.5398408,184.96,184.91,8.10461234]
[1735337674984,2.7076,184.93,184.92,3.16]
[1735337675188,1.5398408,184.96,184.92,3.16]
[1735337675784,2.7073,184.95,184.92,3.16]
[1735337676291,1.5398408,184.96,184.92,3.16]
[1735337676582,2.7076,184.94,184.92,3.16]
[1735337677585,2.7073,184.95,184.93,8.10461234]
[1735337677985,25.29670474,185.04,184.93,8.10461234]
[1735337678187,2.7066,185.0,184.98,8.10461234]
[1735337678490,2.7066,185.0,184.99,3.16]
[1735337679490,2.7063,185.03,184.99,3.16]
[1735337679689,37.71014616,185.07,185.01,8.10461234]
[1735337680394,8.10461234,185.07,185.01,8.10461234]
[1735337681590,2.7063,185.02,185.01,8.10461234]
[1735337683289,95.83358116,185.09,185.01,8.10461234]
[1735337683498,95.83358116,185.09,185.03,8.10461234]
[1735337683695,103.9381935,185.09,185.04,3.16]
[1735337684098,2.7058,185.05,185.04,3.16]
[1735337685505,2.7057,185.06,185.04,3.16]
[1735337686199,2.7057,185.06,185.05,8.10461234]
[1735337687006,2.7055,185.08,185.05,8.10461234]
[1735337687501,2.7055,185.08,185.04,3.16]
[1735337687502,2.7055,185.08,185.07,8.10461234]
[1735337688404,2.7052,185.1,185.07,8.10461234]
[1735337689601,2.7052,185.1,185.09,8.10461234]
[1735337689901,2.7048,185.13,185.09,11.28461234]
[1735337690108,2.7048,185.13,185.11,8.10461234]
[1735337691903,2.7045,185.15,185.11,8.10461234]
[1735337692105,2.7045,185.15,185.13,8.10461234]
[1735337692299,2.7045,185.15,185.14,3.18]
[1735337692902,8.10461234,185.15,185.06,3.3877]
[1735337693108,2.7052,185.1,185.09,8.10461234]
[1735337694212,2.7053,185.09,185.07,3.18]
[1735337694512,2.7053,185.09,185.08,8.10461234]
[1735337695215,8.10461234,185.13,185.08,3.18]
[1735337695514,8.10461234,185.11,185.08,3.18]
[1735337696412,2.7053,185.09,185.08,3.18]
[1735337698115,2.7051,185.1,185.08,3.18]
[1735337698316,2.7051,185.1,185.09,8.10461234]
[1735337702009,2.7053,185.09,185.08,11.28461234]
[1735337703917,2.7053,185.09,185.08,3.18]
[1735337704116,2.7053,185.09,185.08,11.28461234]
[1735337712624,8.10461234,185.12,184.97,3.2344]
[1735337712825,8.10461234,185.07,185.02,3.18]
[1735337713028,8.10461234,185.07,185.03,3.18]
[1735337713327,8.10461234,185.07,185.04,3.18]
[1735337713822,2.7058,185.05,185.04,3.18]
[1735337714128,10.81041234,185.05,185.04,3.18]
[1735337714327,2.7058,185.05,185.04,3.18]
[1735337716231,8.10461234,185.06,185.04,3.18]
[1735337717431,2.7058,185.05,185.04,3.18]
[1735337717827,8.10461234,185.06,185.04,3.18]
[1735337719135,2.7058,185.05,185.04,3.18]
[1735337721533,2.7067,185.0,184.96,44.98767303]
[1735337721738,2.7067,185.0,184.98,8.10461234]
[1735337722230,8.10461234,185.04,184.96,44.98767303]
[1735337722431,8.10461234,185.0,184.87,30.01207954]
[1735337722632,12.09074097,185.1,184.93,3.22]
[1735337722633,8.10461234,184.98,184.93,3.22]
[1735337722832,2.7081,184.9,184.89,8.10461234]
[1735337723033,8.10461234,184.98,184.89,11.32461234]
[1735337723337,8.10461234,185.0,184.93,8.10461234]
[1735337723532,2.7073,184.96,184.94,3.22]
[1735337723738,8.10461234,185.0,184.94,3.22]
[1735337724139,2.7073,184.96,184.94,3.22]
[1735337724534,2.7073,184.95,184.94,3.22]
[1735337732241,3.2509,185.03,184.94,3.22]
[1735337732447,1.5713,185.03,184.97,8.10461234]
[1735337732746,2.7067,185.0,184.97,8.10461234]
[1735337733145,1.5713,185.03,184.97,8.10461234]
[1735337733346,31.26153382,185.08,184.97,8.10461234]
[1735337733650,9.74511234,185.07,184.99,8.10461234]
[1735337733841,2.7064,185.02,185.0,3.22]
[1735337735146,2.7064,185.01,185.0,3.22]
[1735337737642,8.10461234,185.03,185.0,3.22]
[1735337739549,2.7064,185.01,185.0,3.22]
[1735337739853,10.81101234,185.01,185.0,3.22]
[1735337742156,8.10461234,185.01,184.93,8.10461234]
[1735337742349,8.10461234,184.97,184.91,8.10461234]
[1735337742550,8.10461234,184.97,184.92,3.22]
[1735337743153,2.7076,184.93,184.92,3.22]
[1735337743354,8.10461234,184.95,184.92,3.22]
[1735337743750,2.7076,184.93,184.92,3.22]
[1735337745561,2.7081,184.9,184.88,8.10461234]
[1735337745751,2.7081,184.9,184.89,3.22]
[1735337747057,2.709,184.84,184.74,7.50301988]
[1735337747254,26.5993,184.99,184.74,10.71691988]
[1735337747255,8.10461234,184.85,184.74,10.71691988]
[1735337747454,8.10461234,184.85,184.81,3.22]
[1735337747855,8.10461234,184.83,184.8,3.22]
[1735337748258,2.7094,184.81,184.8,3.22]
[1735337748458,10.81401234,184.81,184.8,3.22]
[1735337749664,2.7094,184.81,184.8,3.22]
[1735337757171,2.71,184.77,184.74,1.5883]
[1735337757359,2.71,184.77,184.75,3.24]
[1735337757562,12.67375531,184.83,184.75,3.24]
[1735337757761,1.6589,184.88,184.75,3.24]
[1735337758269,12.67375531,184.87,184.75,3.24]
[1735337758675,12.67375531,184.87,184.75,5.9502]
[1735337759467,2.7093,184.82,184.75,5.9502]
[1735337760470,2.7093,184.82,184.77,12.67375531]
[1735337760669,2.7093,184.82,184.78,1.6516]
[1735337760869,57.11414571,184.89,184.8,12.67375531]
[1735337761073,57.11414571,184.89,184.81,3.24]
[1735337761376,14.37405531,184.96,184.83,12.67375531]
[1735337761668,14.37405531,184.96,184.86,12.67375531]
[1735337761862,12.67375531,184.96,184.87,3.24]
[1735337762260,1.53983838,184.97,184.87,3.24]
[1735337762460,1.53983838,184.97,184.89,12.67375531]
[1735337762870,1.53983838,184.97,184.89,14.36215531]
[1735337763068,12.67375531,185.02,184.89,14.36215531]
[1735337763267,12.67375531,185.02,184.9,2.708]
[1735337763268,2.7072,184.96,184.9,2.708]
[1735337763660,12.67375531,185.02,184.89,14.36215531]
[1735337763861,2.7069,184.99,184.89,17.07035531]
[1735337764066,12.67375531,185.02,184.89,14.36215531]
[1735337764568,12.67375531,185.02,184.89,17.07035531]
[1735337764569,2.7073,184.96,184.89,17.07035531]
[1735337765162,2.7075,184.94,184.89,17.07035531]
[1735337765365,2.7075,184.94,184.89,14.36215531]
[1735337766459,12.67375531,185.02,184.89,14.36215531]
[1735337766667,2.7072,184.96,184.89,14.36215531]
[1735337767570,2.7072,184.96,184.91,2.7078]
[1735337767771,2.7072,184.96,184.92,3.24]
[1735337768271,2.7075,184.94,184.92,3.24]
[1735337773370,1.6878,185.04,184.92,15.91375531]
[1735337773874,2.7068,184.99,184.94,2.7074]
[1735337775376,14.21765531,185.05,184.96,2.7072]
[1735337775574,14.21765531,185.05,184.97,3.24]
[1735337775876,2.7066,185.0,184.97,3.24]
[1735337776874,14.21765531,185.05,184.97,3.24]
[1735337777970,12.67375531,185.02,184.98,3.24]
[1735337779077,2.7067,184.99,184.98,3.24]
[1735337779282,1.5439,185.05,184.98,3.24]
[1735337779480,12.67375531,185.03,184.98,3.24]
[1735337779675,2.7067,184.99,184.98,3.24]
[1735337779977,12.67375531,185.03,184.91,2.7079]
[1735337780182,2.7072,184.96,184.92,3.24]
[1735337780879,12.67375531,184.97,184.88,1.6061]
[1735337781180,12.67375531,184.97,184.89,3.24]
[1735337781380,2.7079,184.91,184.9,3.24]
[1735337785684,42.27928913,185.04,184.9,3.24]
[1735337785685,2.7073,184.95,184.9,3.24]
[1735337785884,12.67375531,185.0,184.9,3.24]
[1735337786289,2.7073,184.95,184.9,5.9479]
[1735337788185,2.707,184.97,184.9,5.9479]
[1735337788487,12.67375531,185.0,184.9,5.9479]
[1735337789084,12.67375531,185.0,184.92,2.7077]
[1735337789283,1.5439,185.05,184.93,12.67375531]
[1735337789488,1.5439,185.05,184.94,1.6718]
[1735337789683,1.5439,185.05,184.95,3.24]
[1735337789885,2.7063,185.02,184.96,2.707]
[1735337790085,2.7063,185.02,184.96,12.67375531]
[1735337790879,2.7063,185.02,184.97,2.707]
[1735337792385,2.7061,185.04,184.99,2.7067]
[1735337792584,2.7061,185.04,185.0,3.24]
[1735337792786,29.60553382,185.12,185.0,3.24]
[1735337793283,29.60553382,185.12,185.0,4.9129]
[1735337793891,29.60553382,185.12,185.02,2.7062]
[1735337794091,12.67375531,185.13,185.02,2.7062]
[1735337794289,2.7055,185.08,185.02,2.7062]
[1735337795795,2.7055,185.08,185.02,15.37995531]
[1735337795991,12.67375531,185.13,185.03,2.7061]
[1735337796197,2.7056,185.07,185.03,2.7061]
[1735337796687,2.7053,185.09,185.04,2.706]
[1735337796894,2.7053,185.09,185.05,3.24]
[1735337800996,12.67375531,185.13,185.06,3.24]
[1735337801187,12.67375531,185.1,185.0,1.6729]
[1735337801388,31.14364372,185.19,185.06,12.67375531]
[1735337801593,29.60553382,185.19,185.09,12.67375531]
[1735337802090,2.7044,185.15,185.1,2.7051]
[1735337806700,2.7047,185.13,185.07,3.24]
[1735337807393,2.7047,185.13,185.06,12.67375531]
[1735337807595,2.7047,185.13,185.08,2.7054]
[1735337807898,12.67375531,185.16,185.07,3.24]
[1735337808298,2.7053,185.09,185.07,3.24]
[1735337808699,2.7053,185.09,185.05,1.5946]
[1735337808900,2.7053,185.09,185.08,3.24]
[1735337810599,2.7056,185.07,185.03,15.37985531]
[1735337810795,2.7056,185.07,185.04,3.22]
[1735337811898,2.7054,185.09,185.04,5.926]
[1735337812401,2.7054,185.09,185.04,3.22]
[1735337813598,2.7054,185.09,185.05,2.7058]
[1735337817403,2.7051,185.1,185.06,2.7056]
[1735337821003,2.7053,185.09,185.06,2.7056]
[1735337823901,2.7049,185.12,185.08,2.7054]
[1735337824102,2.7049,185.12,185.09,3.22]
[1735337824304,42.27928913,185.19,185.09,3.22]
[1735337825004,7.43322908,185.18,185.09,3.22]
[1735337825604,2.7049,185.12,185.09,3.22]
[1735337825800,8.07977999,185.17,185.1,8.07977999]
[1735337826502,2.7049,185.12,185.1,8.07977999]
[1735337827398,7.43322908,185.18,185.1,8.07977999]
[1735337827602,8.07977999,185.17,185.1,8.07977999]
[1735337828102,37.68531381,185.19,185.12,8.07977999]
[1735337828905,2.7045,185.15,185.12,8.07977999]
[1735337830114,8.07977999,185.15,185.09,3.22]
[1735337830705,2.7049,185.12,185.09,11.29977999]
[1735337832206,8.07977999,185.15,185.09,11.29977999]
[1735337832508,8.07977999,185.15,185.09,3.22]
[1735337833108,2.7051,185.11,185.09,3.22]
[1735337834905,2.7051,185.11,185.09,11.29977999]
[1735337837215,7.43322908,185.16,185.09,11.29977999]
[1735337837405,7.43322908,185.16,185.14,8.07977999]
[1735337837611,7.43322908,185.16,185.15,3.22]
[1735337838615,2.7041,185.17,185.15,3.22]
[1735337841310,2.7039,185.19,185.16,8.07977999]
[1735337842619,2.7037,185.2,185.16,10.78397999]
[1735337843009,2.7037,185.2,185.16,8.07977999]
[1735337843207,10.20456989,185.21,185.18,8.07977999]
[1735337844320,2.7035,185.21,185.18,8.07977999]
[1735337848121,2.7038,185.19,185.15,2.7044]
[1735337848419,8.07977999,185.21,185.16,3.2]
[1735337849423,2.7041,185.18,185.16,3.2]
[1735337851623,8.07977999,185.2,185.08,1.5566]
[1735337851934,8.07977999,185.2,185.12,8.07977999]
[1735337852323,2.7044,185.16,185.12,8.07977999]
[1735337853525,8.07977999,185.2,185.12,8.07977999]
[1735337853728,8.07977999,185.16,185.09,2.7051]
[1735337853927,8.07977999,185.16,185.1,11.27977999]
[1735337854329,2.7047,185.13,185.1,11.27977999]
[1735337855322,7.50106989,185.21,185.08,1.5566]
[1735337855323,8.07977999,185.14,185.08,1.5566]
[1735337855531,8.07977999,185.14,185.09,3.2]
[1735337856428,2.7051,185.11,185.09,3.2]
[1735337858328,8.07977999,185.12,185.05,2.7057]
[1735337858525,8.07977999,185.12,185.06,11.27977999]
[1735337858922,2.7051,185.11,185.06,11.27977999]
[1735337859230,8.07977999,185.16,185.08,8.07977999]
[1735337859429,31.56307958,185.19,185.1,8.07977999]
[1735337859732,8.07977999,185.17,185.11,3.2]
[1735337860432,2.7047,185.13,185.11,3.2]
[1735337860634,8.07977999,185.17,185.11,3.2]
[1735337860834,8.07977999,185.15,185.11,3.2]
[1735337861532,2.7048,185.12,185.11,3.2]
[1735337862328,2.7046,185.14,185.11,3.2]
[1735337862527,9.63857999,185.19,185.12,8.07977999]
[1735337863236,2.7041,185.17,185.12,10.78447999]
[1735337863930,8.07977999,185.19,185.12,10.78447999]
[1735337864124,2.7042,185.16,185.12,8.07977999]
[1735337864324,8.07977999,185.17,185.12,8.07977999]
[1735337864933,2.7046,185.14,185.12,8.07977999]
[1735337867037,2.7047,185.13,185.12,8.07977999]
[1735337868442,2.7047,185.13,185.11,3.2]
[1735337868629,8.07977999,185.16,185.1,8.07977999]
[1735337868935,8.07977999,185.16,185.11,3.2]
[1735337870434,8.07977999,185.14,185.06,8.07977999]
[1735337870631,8.07977999,185.14,185.07,3.18]
[1735337871242,2.7052,185.1,185.07,3.18]
[1735337872442,2.7053,185.09,185.07,3.18]
[1735337873539,2.7051,185.1,185.07,3.18]
[1735337873740,8.07977999,185.16,185.08,8.07977999]
[1735337874346,2.7048,185.13,185.08,10.78507999]
[1735337876955,2.7048,185.13,185.1,8.07977999]
[1735337877951,30.00427958,185.2,185.12,8.07977999]
[1735337878252,30.00427958,185.2,185.11,2.7049]
[1735337878253,38.08405957,185.2,185.13,3.18]
[1735337878549,8.07977999,185.18,185.13,3.18]
[1735337879442,2.7044,185.15,185.13,3.18]
[1735337880648,2.7042,185.17,185.13,3.18]
[1735337880848,8.07977999,185.18,185.13,3.18]
[1735337881852,2.7045,185.15,185.13,3.18]
[1735337884955,8.07977999,185.18,185.13,3.18]
[1735337885557,2.7045,185.14,185.13,3.18]
[1735337886551,8.07977999,185.2,185.13,11.25977999]
[1735337887150,2.7043,185.16,185.13,11.25977999]
[1735337887656,30.00427958,185.21,185.15,8.07977999]
[1735337887955,30.00427958,185.21,185.17,8.07977999]
[1735337888159,2.7037,185.2,185.18,3.18]
[1735337888459,30.00427958,185.21,185.19,8.07977999]
[1735337888860,32.70787958,185.21,185.18,3.18]
[1735337889062,2.7036,185.21,185.18,3.18]
[1735337889358,2.7037,185.2,185.18,3.18]
[1735337889956,2.7038,185.19,185.18,3.18]
[1735337892156,2.7037,185.2,185.18,3.18]
[1735337892364,30.00427958,185.27,185.19,8.07977999]
[1735337892654,8.07977999,185.24,185.2,3.18]
[1735337894465,2.7035,185.21,185.2,3.18]
[1735337898770,2.7035,185.21,185.16,10.78397999]
[1735337899062,2.7035,185.21,185.2,3.18]
[1735337906182,8.07977999,185.26,185.2,3.18]
[1735337906380,8.07977999,185.27,185.2,11.25977999]
[1735337907481,2.7031,185.24,185.2,13.96327999]
[1735337908783,2.7031,185.24,185.2,11.25977999]
[1735337910081,8.07977999,185.25,185.2,3.18]
[1735337910783,2.7035,185.22,185.2,3.18]
[1735337914186,2.7032,185.24,185.2,3.18]
[1735337914682,8.07977999,185.27,185.2,3.18]
[1735337914979,2.7033,185.23,185.2,3.18]
[1735337918878,2.7033,185.23,185.2,5.8836]
[1735337919086,2.703,185.25,185.21,8.07977999]
[1735337919693,2.703,185.25,185.21,10.78317999]
[1735337919982,2.703,185.25,185.21,8.07977999]
[1735337920386,2.703,185.25,185.21,10.78327999]
[1735337927194,2.703,185.25,185.22,2.7034]
[1735337929989,2.703,185.25,185.21,10.78327999]
[1735337935899,15.58084988,185.29,185.22,3.14]
[1735337936094,2.7031,185.24,185.22,3.14]
[1735337936503,8.07977999,185.25,185.14,4.8845]
[1735337936799,8.07977999,185.23,185.16,8.07977999]
[1735337937001,8.07977999,185.23,185.17,3.14]
[1735337937603,2.7038,185.2,185.17,3.14]
[1735337938003,8.07977999,185.23,185.17,3.14]
[1735337938296,2.7038,185.19,185.17,3.14]
[1735337940001,2.704,185.18,185.16,8.07977999]
[1735337940206,2.704,185.18,185.17,3.14]
[1735337940497,8.07977999,185.21,185.14,4.8845]
[1735337940801,8.07977999,185.19,185.15,3.14]
[1735337940997,8.07977999,185.19,185.16,3.14]
[1735337941303,2.7041,185.17,185.16,3.14]
[1735337944305,2.7046,185.14,185.12,50.56]
[1735337944503,2.7046,185.14,185.13,3.14]
[1735337946401,2.7046,185.14,185.12,50.56]
[1735337946600,2.7046,185.14,185.13,3.14]
[1735337950803,2.7047,185.13,185.09,3.3038]
[1735337951006,2.7047,185.13,185.1,3.14]
[1735337951007,8.07977999,185.13,185.1,3.14]
[1735337951207,78.65811842,185.22,185.1,3.14]
[1735337951405,2.7039,185.19,185.1,3.14]
[1735337951605,8.07977999,185.17,185.11,8.07977999]
[1735337952207,8.07977999,185.17,185.1,3.14]
[1735337952805,2.7048,185.13,185.1,3.14]
[1735337953006,8.07977999,185.17,185.1,3.14]
[1735337953505,2.7049,185.12,185.1,3.14]
[1735337954502,86.15987295,185.22,185.1,3.14]
[1735337954503,2.705,185.11,185.1,3.14]
[1735337954703,2.705,185.11,185.09,8.07977999]
[1735337955003,2.705,185.11,185.1,3.14]
[1735337955904,87.01628264,185.22,185.1,5.845]
[1735337956102,8.07977999,185.2,185.1,3.14]
[1735337956309,8.07977999,185.18,185.11,8.07977999]
[1735337956606,2.7045,185.15,185.11,8.07977999]
[1735337957005,2.7046,185.14,185.11,8.07977999]
[1735337957408,8.07977999,185.18,185.11,8.07977999]
[1735337957705,2.7047,185.13,185.11,8.07977999]
[1735337958806,57.01200306,185.22,185.11,8.07977999]
[1735337959106,57.01200306,185.22,185.15,8.07977999]
[1735337959301,65.09178305,185.22,185.16,3.14]
[1735337960609,2.704,185.18,185.16,3.14]
[1735337961506,8.07977999,185.2,185.13,8.07977999]
[1735337961709,2.7044,185.16,185.14,3.16]
[1735337962103,2.7044,185.15,185.14,3.16]
[1735337966210,57.01200306,185.22,185.14,3.16]
[1735337966509,2.7039,185.19,185.15,8.07977999]
[1735337967410,57.01200306,185.22,185.17,8.07977999]
[1735337967611,2.7035,185.22,185.17,8.07977999]
[1735337968510,2.7035,185.22,185.18,2.7039]
[1735337968815,8.07977999,185.25,185.19,11.23977999]
[1735337969013,8.07977999,185.25,185.2,3.16]
[1735337969717,2.7029,185.25,185.2,3.16]
[1735337970912,2.7031,185.24,185.2,3.16]
[1735337972411,15.58084988,185.29,185.21,8.07977999]
[1735337972611,8.07977999,185.27,185.21,8.07977999]
[1735337972810,38.08405957,185.29,185.21,8.07977999]
[1735337973006,38.08405957,185.29,185.21,11.30987999]
[1735337973613,8.07977999,185.27,185.21,11.30987999]
[1735337974315,2.7027,185.27,185.22,2.7034]
[1735337977617,2.7027,185.27,185.23,10.78297999]
[1735337979726,2.7025,185.29,185.24,2.703]
[1735337979921,8.07977999,185.31,185.25,11.23977999]
[1735337981420,2.7025,185.28,185.25,11.23977999]
[1735337983423,9.05006989,185.35,185.25,11.23977999]
[1735337983624,2.7023,185.29,185.25,13.94267999]
[1735337984220,2.7025,185.28,185.25,11.23977999]
[1735337984819,2.7025,185.28,185.25,13.94267999]
[1735337985214,75.58309614,185.38,185.27,8.07977999]
[1735337985412,8.07977999,185.33,185.27,8.07977999]
[1735337985616,2.3798,185.38,185.27,8.07977999]
[1735337985823,8.07977999,185.32,185.27,8.07977999]
[1735337986421,2.7024,185.29,185.27,8.07977999]
[1735337987215,2.3798,185.38,185.27,8.07977999]
[1735337987420,8.07977999,185.33,185.25,3.16]
[1735337987622,8.07977999,185.31,185.25,3.16]
[1735337988120,2.7024,185.29,185.25,3.16]
[1735337988921,2.7025,185.28,185.25,3.16]
[1735337993323,2.7025,185.28,185.25,5.8629]
[1735337995033,2.7025,185.28,185.26,8.07977999]
[1735337995525,8.07977999,185.32,185.26,8.07977999]
[1735337995728,2.7024,185.29,185.26,8.07977999]
[1735337997931,2.7022,185.31,185.28,8.07977999]
[1735337998332,8.07977999,185.35,185.29,2.7023]
[1735337998333,2.7019,185.33,185.29,2.7023]
[1735337998537,2.7019,185.33,185.3,3.16]
[1735337999237,2.7019,185.33,185.29,2.7023]
[1735337999439,2.7019,185.33,185.3,3.16]
[1735338001240,2.7016,185.34,185.3,13.94197999]
[1735338002534,2.7015,185.35,185.31,2.702]
[1735338002842,8.07977999,185.37,185.3,11.23977999]
[1735338003739,2.7015,185.35,185.3,13.94187999]
[1735338004546,2.7017,185.34,185.3,13.94187999]
[1735338005445,2.7017,185.34,185.3,10.78187999]
[1735338005742,2.7017,185.34,185.31,3.16]
[1735338008243,2.7018,185.33,185.31,3.16]
[1735338009648,8.07977999,185.35,185.32,3.16]
[1735338009847,86.91535313,185.39,185.33,3.16]
[1735338010045,86.91535313,185.39,185.34,8.07977999]
[1735338010046,29.95733064,185.39,185.34,8.07977999]
[1735338010647,2.7011,185.38,185.34,10.78127999]
[1735338011949,2.7012,185.37,185.34,10.78127999]
[1735338012747,2.7012,185.37,185.34,8.07977999]
[1735338013647,2.7012,185.37,185.35,3.16]